bitfinex/quotes_ETHUSD_20240719
["timestamp","ask_amount","ask_price","bid_price","bid_amount"]
[1721358434371,0.771409,3417.2,3417.1,2.92645]
[1721358434561,0.771409,3417.2,3416.9,2.92661]
[1721358434879,0.771409,3417.2,3417.1,2.92645]
[1721358435179,0.771409,3417.2,3416.8,2.9267]
[1721358435342,0.771409,3417.2,3416.6,5.92687]
[1721358435343,0.771409,3417.2,3416.9,3.0]
[1721358435557,0.771409,3417.2,3416.9,2.92656]
[1721358436478,0.771409,3417.2,3417.0,2.92653]
[1721358437016,0.771409,3417.2,3417.1,2.92645]
[1721358437665,0.771409,3417.2,3417.1,5.8529]
[1721358438011,0.771409,3417.2,3416.9,2.92657]
[1721358439997,0.771409,3417.2,3417.0,2.92653]
[1721358440298,0.771409,3417.2,3416.8,2.92663]
[1721358440496,0.771409,3417.2,3417.0,2.92647]
[1721358440706,0.771409,3417.2,3417.1,2.92645]
[1721358442299,0.771409,3417.2,3417.1,5.8529]
[1721358442606,0.771409,3417.2,3417.1,17.22625]
[1721358442855,0.771409,3417.2,3417.1,23.2357]
[1721358443024,2.312,3419.1,3418.4,2.92532]
[1721358443223,3.27341237,3419.4,3418.6,2.92515]
[1721358443419,3.27341237,3419.4,3418.7,2.92506]
[1721358444017,0.34892237,3419.4,3418.8,2.92496]
[1721358444510,2.92416,3419.8,3418.8,0.05849338]
[1721358444710,2.92416,3419.8,3418.6,7.4]
[1721358445026,0.0818496,3419.7,3419.1,2.92468]
[1721358445204,2.92407,3419.9,3418.9,2.9249]
[1721358445609,0.08168169,3419.8,3418.9,2.9249]
[1721358445819,0.30057517,3419.7,3418.9,2.9249]
[1721358446071,0.30057517,3419.7,3419.1,2.92473]
[1721358446072,0.08167506,3419.7,3419.1,2.92473]
[1721358446245,5.23901,3420.1,3419.4,2.92448]
[1721358446552,0.08170992,3419.6,3419.1,2.92473]
[1721358446769,0.08195607,3419.5,3418.8,2.92492]
[1721358447063,2.92464,3419.3,3418.6,7.4]
[1721358447537,0.0819965,3419.2,3418.6,7.4]
[1721358447906,2.92462,3419.3,3418.6,7.4]
[1721358448101,0.0819286,3419.2,3418.6,7.4]
[1721358448509,2.92468,3419.2,3418.6,7.4]
[1721358448747,0.584918,3419.1,3418.6,7.4]
[1721358448961,0.584918,3419.1,3418.5,2.92524]
[1721358449511,0.584918,3419.1,3418.6,2.92516]
[1721358449766,2.92458,3419.3,3418.6,2.92516]
[1721358449961,2.92466,3419.2,3418.4,2.92531]
[1721358450267,2.92466,3419.2,3418.2,7.4]
[1721358450268,2.92509,3418.7,3418.2,7.4]
[1721358450615,2.358,3419.2,3417.6,13.32599]
[1721358450616,2.92543,3418.3,3417.6,13.32599]
[1721358450943,2.9253,3418.5,3417.7,2.92593]
[1721358451133,2.9253,3418.5,3417.6,7.4]
[1721358451134,3.00735644,3418.4,3417.6,7.4]
[1721358451347,2.92552,3418.2,3417.6,7.4]
[1721358451512,2.92552,3418.2,3417.6,10.32602]
[1721358451715,0.0818292,3418.1,3417.6,10.32602]
[1721358452058,3.510298,3418.5,3417.6,10.32602]
[1721358452344,3.2764098,3418.4,3417.6,10.32601]
[1721358452552,3.2764098,3418.4,3417.7,2.92594]
[1721358452715,3.0067846,3418.3,3417.7,2.92594]
[1721358453046,3.0067846,3418.3,3417.6,7.4]
[1721358453261,0.0813546,3418.3,3417.6,7.4]
[1721358453437,0.0813546,3418.3,3417.7,2.98444977]
[1721358453621,2.92518,3418.6,3417.8,2.92581]
[1721358453821,0.08130922,3418.2,3417.9,2.92574]
[1721358454057,5.41144,3418.8,3418.0,2.92568]
[1721358454256,0.07860161,3418.1,3418.0,2.92568]
[1721358454443,5.41144,3418.8,3417.6,7.4]
[1721358454444,2.4864,3418.8,3418.1,2.92559]
[1721358454646,5.41141,3418.8,3418.1,2.92559]
[1721358454985,5.41141,3418.8,3418.0,2.92568]
[1721358454986,2.9251,3418.7,3418.0,2.92568]
[1721358455138,5.4114,3418.8,3418.1,2.9256]
[1721358455476,0.833616,3418.8,3417.9,2.92574]
[1721358455760,2.92517,3418.6,3417.9,2.92574]
[1721358456071,2.517,3419.1,3417.6,7.4]
[1721358456361,2.92497,3418.9,3417.6,7.4]
[1721358456574,2.517,3419.1,3417.6,7.4]
[1721358456575,2.3627,3419.0,3417.6,7.4]
[1721358456728,0.48797,3418.9,3417.6,7.4]
[1721358456919,2.92558,3418.2,3417.6,7.4]
[1721358457134,2.92558,3418.2,3417.5,2.92605]
[1721358457344,2.92554,3418.2,3417.5,2.92605]
[1721358458172,2.9256,3418.1,3417.4,2.92619]
[1721358458377,2.9256,3418.1,3417.5,3.0]
[1721358458876,2.92552,3418.2,3417.5,5.92608]
[1721358459255,3.510606,3418.2,3417.5,5.92608]
[1721358459455,2.92561,3418.1,3417.5,5.92608]
[1721358459664,2.92561,3418.1,3417.2,7.4]
[1721358459863,0.585086,3418.2,3416.8,7.4]
[1721358459864,2.92595,3417.7,3416.8,7.4]
[1721358460068,2.92603,3417.6,3416.8,7.4]
[1721358460380,3.00480217,3417.6,3416.8,7.4]
[1721358461075,2.92629,3417.3,3416.8,7.4]
[1721358461576,0.07861042,3417.2,3416.8,7.4]
[1721358461974,2.92616,3417.5,3416.8,7.4]
[1721358462283,0.07860378,3417.1,3416.8,7.4]
[1721358462481,2.92616,3417.5,3416.8,7.4]
[1721358462881,3.00486154,3417.4,3416.8,7.4]
[1721358463047,3.00486154,3417.4,3416.8,10.32668]
[1721358463696,3.00486154,3417.4,3416.8,7.4]
[1721358463697,0.07866154,3417.4,3416.8,7.4]
[1721358463848,0.07866154,3417.4,3417.1,2.92638]
[1721358464051,2.92586,3417.8,3417.1,2.92638]
[1721358464511,0.07870341,3417.7,3417.1,2.92638]
[1721358465473,0.07870341,3417.7,3416.8,7.4]
[1721358465688,2.9257,3418.0,3417.1,2.92645]
[1721358465885,0.07859042,3417.6,3417.2,2.92636]
[1721358466072,2.9256,3418.1,3417.4,2.92619]
[1721358466254,0.07848918,3417.5,3417.4,2.92619]
[1721358466479,2.92555,3418.2,3417.4,2.92619]
[1721358466787,2.92544,3418.3,3417.4,2.92619]
[1721358466788,4.055519,3418.1,3417.4,2.92619]
[1721358467173,0.07866711,3418.0,3417.4,2.92619]
[1721358467683,0.07866711,3418.0,3417.5,2.9261]
[1721358468107,0.07866711,3418.0,3415.9,0.61138241]
[1721358468108,2.4481,3417.2,3415.9,0.61138241]
[1721358468299,2.4481,3417.2,3415.5,2.92781]
[1721358468300,2.517,3416.3,3415.5,2.92781]
[1721358468500,2.517,3416.3,3415.0,2.92819]
[1721358468501,0.07849072,3417.1,3416.1,2.9273]
[1721358468803,1.52943403,3418.4,3417.5,2.92611]
[1721358468958,2.85257,3418.9,3417.3,2.92627]
[1721358468959,1.52943403,3418.8,3417.3,2.92627]
[1721358469308,2.9256,3418.1,3417.3,2.92627]
[1721358469460,2.92579,3417.9,3417.1,2.2936]
[1721358469796,2.92579,3417.9,3416.9,3.0]
[1721358469970,2.92614,3417.5,3416.8,3.0]
[1721358470180,2.92628,3417.3,3416.4,2.3148]
[1721358470377,2.92645,3417.1,3416.4,2.3148]
[1721358470583,2.92637,3417.2,3416.4,2.3148]
[1721358470892,2.92664,3416.9,3416.1,2.9273]
[1721358471696,3.218794,3417.5,3415.9,2.92746]
[1721358471991,2.92686,3416.7,3415.9,2.92746]
[1721358472997,2.9269,3416.6,3416.0,3.0]
[1721358473979,2.9268,3416.7,3416.0,5.92739]
[1721358475609,2.92665,3416.9,3416.0,3.0]
[1721358475816,2.92672,3416.8,3416.2,2.92722]
[1721358475966,2.999711,3416.8,3416.2,2.92722]
[1721358476289,2.999711,3416.8,3416.0,5.92736]
[1721358476605,2.92672,3416.8,3416.0,5.92736]
[1721358476824,2.92677,3416.8,3416.0,5.92736]
[1721358476968,0.07297673,3416.7,3416.0,5.92736]
[1721358477168,2.92677,3416.8,3416.0,5.92736]
[1721358477403,0.3218794,3417.4,3416.0,5.92736]
[1721358477404,2.99979673,3416.7,3416.0,5.92736]
[1721358477631,2.92682,3416.7,3416.0,5.92736]
[1721358477902,2.92682,3416.7,3415.7,7.4]
[1721358477903,2.92684,3416.7,3415.7,7.4]
[1721358478121,5.4115,3417.0,3414.5,8.47018689]
[1721358478122,2.92817,3415.1,3414.5,8.47018689]
[1721358478312,5.8449,3416.3,3414.7,2.92849]
[1721358478313,2.92781,3415.6,3414.7,2.92849]
[1721358478623,3.00065668,3415.5,3414.8,0.05855977]
[1721358478917,3.00065668,3415.5,3414.7,2.92849]
[1721358479223,2.92783,3415.5,3414.7,2.92849]
[1721358479366,3.4553067,3415.4,3414.7,2.92849]
[1721358479570,3.00074241,3415.4,3414.7,2.92849]
[1721358479794,3.00074241,3415.4,3414.5,2.92868]
[1721358479795,2.928,3415.3,3414.5,2.92868]
[1721358480003,2.928,3415.3,3414.3,2.92885]
[1721358480004,2.928,3415.3,3414.6,2.92859]
[1721358480215,2.92787,3415.5,3414.6,2.92859]
[1721358480433,2.92787,3415.5,3414.2,7.4]
[1721358480434,2.92787,3415.5,3414.7,2.92848]
[1721358480605,2.928,3415.3,3414.6,2.9286]
[1721358480993,2.928,3415.3,3414.7,3.0]
[1721358481226,0.07263401,3415.2,3414.7,3.0]
[1721358482129,3.00072401,3415.2,3414.4,2.92875]
[1721358482280,3.00072401,3415.2,3414.5,3.0]
[1721358482478,3.63180244,3415.2,3414.5,3.0]
[1721358483210,3.63180244,3415.2,3414.2,10.32894]
[1721358483211,2.92819,3415.1,3414.2,10.32894]
[1721358483691,2.92836,3414.9,3414.2,10.32894]
[1721358483895,2.92843,3414.8,3414.2,7.4]
[1721358484328,0.07244259,3414.7,3414.2,7.4]
[1721358484829,2.92843,3414.8,3414.2,7.4]
[1721358484986,3.514099,3414.8,3414.3,3.0]
[1721358485216,0.07244259,3414.7,3414.2,7.4]
[1721358486102,3.00097259,3414.7,3414.2,7.4]
[1721358486119,3.00097259,3414.7,3413.7,9.8162]
[1721358486120,0.07244259,3414.7,3413.7,9.8162]
[1721358486742,2.92874,3414.5,3413.8,2.92925]
[1721358486762,3.22885826,3414.5,3413.8,2.92925]
[1721358486771,0.07244537,3414.4,3413.8,2.92925]
[1721358487850,2.92886,3414.3,3413.7,7.4]
[1721358488046,3.00117839,3414.3,3413.7,7.4]
[1721358490944,0.07231839,3414.3,3413.7,10.32934]
[1721358491295,0.33011367,3414.3,3413.7,10.32934]
[1721358491487,2.92873,3414.5,3413.7,10.32934]
[1721358491734,2.92852,3414.7,3413.7,10.32934]
[1721358491924,2.92877,3414.4,3413.7,10.32934]
[1721358492305,0.07220933,3414.3,3413.7,10.32934]
[1721358492516,2.92877,3414.4,3413.7,10.32934]
[1721358492866,2.92877,3414.4,3413.9,2.92913]
[1721358492867,0.07220933,3414.3,3413.9,2.92913]
[1721358496114,0.07220933,3414.3,3413.7,10.32936]
[1721358496454,0.585737,3414.4,3413.7,7.4]
[1721358496602,0.07190898,3414.2,3413.9,2.92913]
[1721358496931,2.9286,3414.6,3413.9,2.92913]
[1721358497123,0.07189469,3414.1,3413.9,2.92913]
[1721358497326,2.9286,3414.6,3413.9,2.92913]
[1721358497628,0.07195185,3414.5,3413.9,2.92913]
[1721358497806,0.66485104,3414.5,3414.0,2.9291]
[1721358498013,0.66485104,3414.5,3413.8,2.92924]
[1721358498236,0.59289919,3414.5,3413.9,2.92917]
[1721358498441,0.59289919,3414.5,3413.5,3.0]
[1721358498442,5.40011756,3414.4,3413.1,7.4]
[1721358498648,2.92891,3414.3,3413.5,2.92952]
[1721358498853,2.92891,3414.3,3413.3,2.92971]
[1721358498854,0.89219268,3414.2,3413.6,2.92944]
[1721358499066,0.96410166,3414.2,3413.6,2.92944]
[1721358500986,0.07190898,3414.2,3413.4,2.9296]
[1721358501131,0.07190898,3414.2,3413.1,7.4]
[1721358501132,0.07190898,3414.2,3414.1,5.85804]
[1721358501340,2.3523,3415.4,3414.2,2.9289]
[1721358501677,2.9281,3415.2,3414.5,2.92867]
[1721358501885,0.55963711,3415.3,3414.7,2.92843]
[1721358502026,0.0717463,3415.1,3414.9,2.92827]
[1721358502236,0.0717463,3415.1,3414.4,2.4424]
[1721358502237,5.27989,3415.8,3415.2,2.92806]
[1721358502428,2.3523,3415.8,3415.1,2.92814]
[1721358503059,5.27988,3415.8,3415.1,2.92814]
[1721358503334,5.27988,3415.8,3415.0,2.92825]
[1721358503335,5.27988,3415.8,3415.0,2.92819]
[1721358503534,0.527988,3415.7,3415.0,2.92819]
[1721358504072,0.527988,3415.7,3415.2,2.92807]
[1721358504277,0.527988,3415.7,3415.0,2.92819]
[1721358504778,0.07210526,3415.6,3415.0,2.92819]
[1721358505301,0.07210526,3415.6,3415.1,2.92811]
[1721358505439,0.07210526,3415.6,3414.7,10.3285]
[1721358505440,0.66009459,3415.6,3414.7,10.3285]
[1721358505789,3.95098933,3415.6,3414.7,7.4]
[1721358505983,3.363,3415.6,3414.7,7.4]
[1721358506180,3.07221206,3415.5,3414.7,7.4]
[1721358506475,2.92831,3415.0,3414.7,7.4]
[1721358506687,2.92842,3414.8,3414.0,2.92909]
[1721358506883,0.585668,3414.7,3414.0,2.92909]
[1721358507030,0.65773401,3414.7,3414.0,2.92909]
[1721358507436,3.58626401,3414.7,3414.0,2.92909]
[1721358507757,2.9286,3414.6,3413.9,10.32917]
[1721358508167,2.92879,3414.4,3413.9,7.4]
[1721358508363,0.30005762,3414.3,3413.9,7.4]
[1721358508831,0.07195583,3414.2,3413.9,7.4]
[1721358509036,2.92861,3414.6,3413.9,7.4]
[1721358509237,0.07194153,3414.1,3413.9,10.32918]
[1721358509513,2.9287,3414.5,3413.9,2.92918]
[1721358509640,0.07192724,3414.0,3413.9,2.92918]
[1721358509983,0.585668,3414.7,3414.0,2.92911]
[1721358509984,3.514218,3414.7,3414.0,2.92911]
[1721358510164,0.585668,3414.7,3414.1,2.92902]
[1721358513047,3.514188,3414.7,3414.1,2.92902]
[1721358513239,2.9286,3414.6,3413.9,2.92914]
[1721358513446,0.6442698,3414.5,3413.9,2.92914]
[1721358513852,2.92868,3414.5,3413.9,2.92914]
[1721358514069,2.92857,3414.7,3413.9,2.92914]
[1721358514987,2.92843,3414.8,3414.1,2.92902]
[1721358516172,5.23876,3415.0,3414.2,2.92887]
[1721358516547,2.92835,3414.9,3414.2,2.92887]
[1721358516883,0.523885,3414.8,3414.1,2.92902]
[1721358517329,0.523885,3414.8,3414.2,2.92894]
[1721358518179,2.928,3415.3,3414.4,2.9287]
[1721358518362,8.3413,3415.5,3414.7,2.92851]
[1721358518573,2.92832,3415.0,3414.5,7.4]
[1721358519462,2.92835,3414.9,3414.5,7.4]
[1721358519667,0.07206075,3414.9,3414.5,7.4]
[1721358519866,2.92804,3415.3,3414.5,7.4]
[1721358520165,3.0,3415.4,3414.5,7.4]
[1721358520166,0.07200217,3414.8,3414.5,7.4]
[1721358520365,0.834144,3415.2,3413.9,2.92918]
[1721358520586,2.9286,3414.6,3413.9,2.92918]
[1721358520784,2.92843,3414.8,3414.0,2.9291]
[1721358521006,0.07199475,3414.5,3414.1,2.92902]
[1721358521310,0.07198046,3414.4,3414.1,2.92902]
[1721358521464,2.92843,3414.8,3414.1,2.92902]
[1721358521666,2.92843,3414.8,3414.2,2.92889]
[1721358521667,0.07198143,3414.3,3414.2,2.92889]
[1721358521963,2.92828,3415.0,3414.3,2.92879]
[1721358522193,2.92828,3415.0,3414.1,2.92902]
[1721358522502,0.834144,3415.2,3414.4,2.92872]
[1721358522503,2.92817,3415.1,3414.4,2.92872]
[1721358522698,0.3762314,3415.0,3414.4,2.92872]
[1721358523369,3.3044914,3415.0,3414.2,2.92888]
[1721358523777,3.3044914,3415.0,3414.3,2.92878]
[1721358523981,0.3762314,3415.0,3414.4,2.92876]
[1721358524777,0.3762314,3415.0,3414.6,2.92858]
[1721358524983,0.3762314,3415.0,3414.4,2.92876]
[1721358525203,0.3762314,3415.0,3414.5,2.92866]
[1721358525524,0.3762314,3415.0,3414.6,2.92857]
[1721358525815,0.834144,3415.2,3414.6,2.92857]
[1721358525980,3.762254,3415.2,3414.4,2.92876]
[1721358526186,3.762254,3415.2,3413.9,2.92915]
[1721358526187,0.834144,3415.2,3414.5,2.92867]
[1721358529611,3.762244,3415.2,3414.5,2.92867]
[1721358530415,0.834144,3415.2,3414.7,2.9285]
[1721358530711,2.928,3415.3,3414.7,2.9285]
[1721358531774,3.94683594,3415.5,3414.7,2.9285]
[1721358531775,6.87469594,3415.5,3414.7,2.9285]
[1721358531971,5.34126,3415.5,3414.7,2.9285]
[1721358532414,2.92793,3415.4,3414.7,2.9285]
[1721358532611,4.16048159,3415.4,3414.7,2.9285]
[1721358532932,2.928,3415.3,3414.7,2.9285]
[1721358533083,1.23255159,3415.4,3414.7,2.9285]
[1721358533483,4.16047159,3415.4,3414.7,2.9285]
[1721358534303,2.928,3415.3,3414.7,2.9285]
[1721358534499,0.65739516,3415.2,3414.7,2.9285]
[1721358534681,0.7271766,3415.2,3414.5,2.92868]
[1721358534885,0.7271766,3415.2,3414.6,2.92859]
[1721358535325,0.7271766,3415.2,3414.4,2.92873]
[1721358535788,0.7271766,3415.2,3414.3,10.32883]
[1721358535987,0.36551766,3415.1,3414.6,2.92859]
[1721358536286,0.06978053,3415.0,3414.4,2.92871]
[1721358536511,0.06978053,3415.0,3414.5,2.92866]
[1721358538127,0.06978053,3415.0,3414.3,7.4]
[1721358538128,0.06978053,3415.0,3414.7,2.92845]
[1721358538340,0.706187,3415.2,3414.7,2.92845]
[1721358538530,0.706187,3415.2,3414.9,2.92832]
[1721358538687,0.706187,3415.2,3415.1,2.92817]
[1721358538890,0.706187,3415.2,3415.1,5.85634]
[1721358539501,0.706187,3415.2,3415.1,9.40634]
[1721358539724,0.706187,3415.2,3415.1,12.33451]
[1721358543465,2.9269,3416.6,3415.9,2.92745]
[1721358543827,0.07008597,3416.5,3415.9,2.92745]
[1721358545458,0.07008597,3416.5,3415.7,2.92765]
[1721358545776,2.92704,3416.5,3415.7,2.92765]
[1721358545965,2.99713995,3416.4,3415.7,2.92765]
[1721358546128,3.58953795,3416.4,3415.7,2.92765]
[1721358546339,2.92724,3416.2,3415.6,7.4]
[1721358546538,2.92724,3416.2,3415.6,10.32772]
[1721358546869,2.92741,3416.0,3415.6,7.4]
[1721358547163,2.3288,3416.8,3415.6,7.4]
[1721358547365,2.92711,3416.4,3415.7,2.92765]
[1721358547543,0.07014375,3416.7,3415.7,2.92765]
[1721358547879,2.92737,3416.1,3415.6,7.4]
[1721358548174,2.92754,3415.9,3415.6,7.4]
[1721358548402,2.92754,3415.9,3415.1,5.92817]
[1721358548548,2.99758831,3415.8,3415.2,3.0]
[1721358548756,2.92758,3415.8,3415.2,3.0]
[1721358549768,2.92758,3415.8,3415.2,5.92808]
[1721358550270,2.92727,3416.2,3415.5,2.92782]
[1721358550427,0.06997453,3415.7,3415.5,2.92782]
[1721358550631,2.92727,3416.2,3415.5,2.92782]
[1721358550834,0.07006475,3416.1,3415.5,2.92782]
[1721358551028,2.92694,3416.6,3415.6,2.92773]
[1721358551235,2.92694,3416.6,3415.2,3.0]
[1721358551236,0.07012183,3416.5,3416.0,2.92738]
[1721358552125,2.9269,3416.6,3416.0,2.92738]
[1721358552355,0.07012673,3416.4,3416.0,2.92738]
[1721358552535,0.07017563,3416.5,3416.0,2.92738]
[1721358552736,0.07011376,3416.3,3416.0,2.92738]
[1721358552965,2.9269,3416.6,3416.0,2.92738]
[1721358553165,0.07007282,3416.2,3416.0,2.92738]
[1721358553375,2.9269,3416.6,3416.0,2.92738]
[1721358553535,0.07004855,3416.1,3415.9,2.92748]
[1721358553743,2.2924,3417.2,3415.4,9.6796]
[1721358553744,2.92702,3416.5,3415.8,2.92754]
[1721358554079,2.92682,3416.7,3415.8,2.92754]
[1721358554276,2.99717033,3416.4,3415.8,2.92754]
[1721358554484,2.92705,3416.4,3415.8,2.92754]
[1721358554716,2.99724119,3416.3,3415.6,2.92772]
[1721358554920,2.99724119,3416.3,3415.5,2.9278]
[1721358554921,2.92728,3416.2,3415.5,2.9278]
[1721358555081,2.99736692,3416.2,3415.6,3.0]
[1721358555421,2.92756,3415.9,3415.4,7.4]
[1721358555706,0.07008692,3416.2,3415.0,7.4]
[1721358555707,2.92789,3415.5,3415.0,7.4]
[1721358555921,2.92793,3415.4,3415.0,7.4]
[1721358556217,0.06992869,3415.4,3415.0,7.4]
[1721358556577,2.92779,3415.6,3415.0,7.4]
[1721358556799,0.06991441,3415.3,3415.0,7.4]
[1721358556993,2.91979,3415.6,3415.0,7.4]
[1721358557401,0.06994296,3415.5,3415.0,7.4]
[1721358558285,2.92771,3415.7,3415.0,7.4]
[1721358558466,0.06992869,3415.4,3415.0,7.4]
[1721358558672,2.92774,3415.6,3415.0,10.32824]
[1721358558872,2.92762,3415.8,3415.0,10.32824]
[1721358559095,0.06998816,3415.5,3415.0,10.32824]
[1721358559295,2.92762,3415.8,3415.2,2.92808]
[1721358559518,0.07000702,3415.4,3415.2,2.92808]
[1721358559726,2.92762,3415.8,3415.2,2.92808]
[1721358560004,0.06990841,3415.3,3415.2,2.92808]
[1721358560216,2.92762,3415.8,3415.2,2.92808]
[1721358560706,0.06995497,3415.7,3415.2,2.92808]
[1721358561079,0.06995497,3415.7,3415.2,5.8561]
[1721358561283,0.06995497,3415.7,3415.0,7.4]
[1721358561284,2.92749,3415.9,3415.3,2.92799]
[1721358561470,0.06995622,3415.6,3415.3,2.92799]
[1721358561670,2.92749,3415.9,3415.3,2.92799]
[1721358561873,0.06993094,3415.5,3415.3,2.92799]
[1721358562072,2.92749,3415.9,3415.3,2.92799]
[1721358562291,0.06993323,3415.4,3415.3,2.92799]
[1721358562491,2.9274,3416.0,3415.3,2.92799]
[1721358562721,0.06993323,3415.4,3415.3,2.92799]
[1721358562951,5.92715,3416.3,3415.1,2.92816]
[1721358562952,2.9275,3415.9,3415.1,2.92816]
[1721358563099,0.06993323,3415.4,3415.1,2.92816]
[1721358563438,2.92763,3415.8,3415.1,2.92816]
[1721358563833,0.06996853,3415.7,3415.1,2.92816]
[1721358564222,2.99763853,3415.7,3415.1,2.92816]
[1721358566113,2.99763853,3415.7,3415.0,7.4]
[1721358566315,2.99763853,3415.7,3415.0,2.92824]
[1721358566825,2.99763853,3415.7,3414.9,2.92828]
[1721358566826,2.99763853,3415.7,3415.1,2.92815]
[1721358567192,2.99763853,3415.7,3414.9,2.92828]
[1721358567448,2.92774,3415.6,3414.9,2.92828]
[1721358567801,2.92774,3415.6,3415.0,2.92823]
[1721358568144,2.92748,3415.9,3415.1,2.92816]
[1721358568145,2.92762,3415.8,3415.1,2.92816]
[1721358568456,0.06993245,3415.5,3415.1,2.92816]
[1721358568601,2.92762,3415.8,3415.1,2.92816]
[1721358569002,0.069961,3415.7,3415.1,2.92816]
[1721358569515,2.997621,3415.7,3414.9,2.92828]
[1721358569833,2.997621,3415.7,3415.0,2.92825]
[1721358571708,2.92793,3415.4,3414.8,2.92842]
[1721358571912,2.92793,3415.4,3414.7,10.32851]
[1721358572112,2.92793,3415.4,3414.8,3.0]
[1721358572308,0.06990389,3415.3,3414.8,5.92837]
[1721358572511,2.4787,3415.6,3414.8,5.92837]
[1721358572745,0.06987774,3415.2,3414.8,5.92837]
[1721358573043,2.92782,3415.5,3414.8,5.92837]
[1721358573584,0.06984452,3415.4,3414.8,5.92837]
[1721358573938,0.06984452,3415.4,3415.0,2.92825]
[1721358574136,2.92768,3415.7,3415.0,2.92825]
[1721358574439,2.92774,3415.6,3415.0,2.92825]
[1721358574657,0.06987998,3415.5,3415.0,2.92825]
[1721358576383,0.06987998,3415.5,3415.2,2.92805]
[1721358576534,2.92757,3415.8,3415.2,2.92805]
[1721358576732,0.06987615,3415.4,3415.2,2.92805]
[1721358576933,2.92757,3415.8,3415.2,2.92805]
[1721358577586,0.06992802,3415.7,3415.2,2.92805]
[1721358579438,0.06992802,3415.7,3415.3,2.92799]
[1721358579639,2.92748,3415.9,3415.3,2.92799]
[1721358579887,0.06998768,3415.8,3415.3,2.92799]
[1721358582990,2.99755768,3415.8,3415.1,2.92816]
[1721358583152,3.67710026,3415.8,3415.1,2.92816]
[1721358583358,3.67710026,3415.8,3414.9,10.32831]
[1721358583359,0.74953026,3415.8,3414.9,7.4]
[1721358583550,2.28339843,3415.8,3414.9,7.4]
[1721358583737,2.92775,3415.6,3414.9,7.4]
[1721358583952,2.92788,3415.5,3414.9,7.4]
[1721358584177,2.99783295,3415.5,3414.9,7.4]
[1721358584878,2.99783295,3415.5,3414.9,10.32834]
[1721358585563,2.92792,3415.4,3414.9,7.4]
[1721358585884,2.99766133,3415.4,3414.9,7.4]
[1721358586256,0.06974133,3415.4,3414.9,10.32833]
[1721358586590,2.92779,3415.6,3414.9,10.32833]
[1721358586794,0.06972102,3415.3,3414.9,10.32833]
[1721358586991,2.92779,3415.6,3414.9,10.32833]
[1721358587151,0.06970674,3415.2,3414.9,10.32833]
[1721358587342,2.92801,3415.3,3414.9,7.4]
[1721358587541,0.06966675,3415.1,3414.9,7.4]
[1721358587743,2.92801,3415.3,3414.9,7.4]
[1721358587951,0.06967055,3415.0,3414.9,7.4]
[1721358588153,2.92801,3415.3,3414.9,7.4]
[1721358588666,0.06974076,3415.2,3414.9,7.4]
[1721358588865,2.92801,3415.3,3414.9,7.4]
[1721358589249,0.06974076,3415.2,3414.9,7.4]
[1721358589458,2.92784,3415.5,3414.9,7.4]
[1721358589653,2.99766271,3415.4,3414.9,7.4]
[1721358589859,2.92801,3415.3,3414.9,7.4]
[1721358590154,0.0697358,3415.2,3414.9,7.4]
[1721358590357,2.92801,3415.3,3414.9,7.4]
[1721358590558,0.06971389,3415.1,3414.9,7.4]
[1721358590876,0.06737581,3415.0,3414.9,7.4]
[1721358591078,2.49772389,3415.3,3414.9,7.4]
[1721358591448,0.06741963,3415.2,3414.9,7.4]
[1721358591698,2.49772389,3415.3,3414.9,7.4]
[1721358591879,1.03328746,3415.7,3414.4,2.92874]
[1721358591880,2.92831,3415.0,3414.4,2.92874]
[1721358592198,0.06736397,3414.9,3414.4,2.92874]
[1721358592434,0.06736397,3414.9,3414.3,7.4]
[1721358592786,2.92858,3414.7,3414.3,7.4]
[1721358593107,1.53446492,3415.1,3414.0,12.32]
[1721358593108,0.06726316,3414.6,3414.0,2.9291]
[1721358593295,2.9286,3414.6,3414.0,2.9291]
[1721358594134,0.06717795,3414.5,3414.0,2.9291]
[1721358595181,0.06717795,3414.5,3413.9,7.4]
[1721358595182,2.92892,3414.3,3413.9,7.4]
[1721358595591,0.06706996,3414.2,3413.9,7.4]
[1721358595787,2.92892,3414.3,3413.9,7.4]
[1721358596204,0.0671005,3414.2,3413.9,7.4]
[1721358596734,2.929,3414.2,3413.9,7.4]
[1721358596883,0.06708622,3414.1,3413.9,7.4]
[1721358598425,2.99611622,3414.1,3413.9,7.4]
[1721358599103,2.99611622,3414.1,3413.4,2.92962]
[1721358599440,2.92917,3414.0,3413.3,9.6931]
[1721358599742,2.92937,3413.7,3413.3,7.4]
[1721358600147,0.06688496,3413.6,3413.3,7.4]
[1721358600481,2.92946,3413.6,3413.3,7.4]
[1721358601118,2.371,3413.8,3413.3,7.4]
[1721358601119,2.99529942,3413.5,3413.3,7.4]
[1721358601327,0.06575942,3413.5,3413.3,7.4]
[1721358601683,2.92952,3413.6,3413.3,7.4]
[1721358601884,0.06562741,3413.4,3413.3,7.4]
[1721358602142,2.92952,3413.6,3412.8,2.93009]
[1721358602289,0.06561693,3413.4,3412.8,2.93009]
[1721358602485,2.99514789,3413.5,3412.8,2.93009]
[1721358602835,0.06556834,3413.4,3412.8,2.93009]
[1721358603580,0.06556834,3413.4,3412.7,2.93021]
[1721358603581,2.99526834,3413.4,3412.7,2.93021]
[1721358603788,2.9297,3413.4,3412.7,2.93021]
[1721358604088,2.371,3413.8,3412.6,7.4]
[1721358604290,2.371,3413.8,3413.1,2.92987]